bitfinex-derivatives/quotes_BTCF0:USTF0_20250510
["timestamp","ask_amount","ask_price","bid_price","bid_amount"]
[1746888658455,0.97730526,103560.0,103550.0,0.1047]
[1746888659061,0.97754833,103560.0,103550.0,0.1047]
[1746888659759,0.97754833,103560.0,103550.0,0.012]
[1746888659957,0.3379584,103550.0,103540.0,0.0952]
[1746888660151,1.32155142,103550.0,103540.0,0.0952]
[1746888660453,1.21959759,103550.0,103540.0,0.0952]
[1746888661059,1.21984066,103550.0,103540.0,0.0952]
[1746888661254,1.22084066,103550.0,103540.0,0.0952]
[1746888661455,1.22284066,103550.0,103540.0,0.0952]
[1746888661650,1.23240283,103550.0,103540.0,0.0952]
[1746888661850,1.22284066,103550.0,103540.0,0.0952]
[1746888662047,1.21523491,103550.0,103540.0,0.0952]
[1746888662252,1.22307129,103550.0,103540.0,0.0952]
[1746888663050,1.08131129,103550.0,103540.0,0.0952]
[1746888663255,1.23267317,103550.0,103540.0,0.0952]
[1746888663860,1.22307129,103550.0,103540.0,0.0952]
[1746888665361,1.11375478,103550.0,103540.0,0.0952]
[1746888665564,1.22307129,103550.0,103540.0,0.0952]
[1746888667566,1.11375478,103550.0,103540.0,0.0952]
[1746888667864,1.22307129,103550.0,103540.0,0.0952]
[1746888671261,1.08131129,103550.0,103540.0,0.0952]
[1746888671464,1.15887129,103550.0,103540.0,0.0952]
[1746888681571,0.90779478,103550.0,103540.0,0.288333]
[1746888681777,1.01711129,103550.0,103540.0,0.0952]
[1746888682174,1.04931129,103550.0,103540.0,0.0952]
[1746888687083,0.68851129,103550.0,103540.0,0.0952]
[1746888687292,1.04931129,103550.0,103540.0,0.288333]
[1746888687891,0.93999478,103550.0,103540.0,0.288333]
[1746888688089,1.04931129,103550.0,103540.0,0.0952]
[1746888688492,1.04931129,103550.0,103540.0,0.288333]
[1746888688691,1.04931129,103550.0,103540.0,0.0952]
[1746888691090,1.07941129,103550.0,103540.0,0.0952]
[1746888691590,0.97009478,103550.0,103540.0,0.0952]
[1746888692094,0.3608,103570.0,103560.0,0.1930957]
[1746888692287,0.10617524,103580.0,103570.0,0.1930771]
[1746888692488,0.29923364,103580.0,103570.0,0.6460771]
[1746888692682,0.40855015,103580.0,103570.0,0.74265346]
[1746888693593,0.41255015,103580.0,103570.0,0.73865346]
[1746888694299,0.41655015,103580.0,103570.0,0.73965346]
[1746888694498,0.41655015,103580.0,103570.0,0.75449184]
[1746888695104,0.34097491,103580.0,103570.0,0.75449184]
[1746888695301,0.2316584,103580.0,103570.0,0.76396627]
[1746888695599,0.34097491,103580.0,103570.0,0.76396627]
[1746888696204,0.2316584,103580.0,103570.0,0.76396627]
[1746888699403,0.2316584,103580.0,103570.0,0.87328278]
[1746888700291,0.2010584,103580.0,103570.0,0.87328278]
[1746888700803,0.2010584,103580.0,103570.0,1.01500278]
[1746888701097,0.2010584,103580.0,103570.0,1.18100278]
[1746888701894,0.31037491,103580.0,103570.0,1.07168627]
[1746888702100,0.2335584,103580.0,103570.0,0.90568627]
[1746888703305,0.2335584,103580.0,103570.0,0.54488627]
[1746888703605,0.2335584,103580.0,103570.0,0.90568627]
[1746888707308,0.2335584,103580.0,103570.0,1.01500278]
[1746888707609,0.2335584,103580.0,103570.0,0.89621184]
[1746888708109,0.4299584,103580.0,103570.0,0.90567264]
[1746888708305,0.4299584,103580.0,103570.0,0.75449184]
[1746888708611,0.53927491,103580.0,103570.0,0.89601184]
[1746888708804,0.90007491,103580.0,103570.0,0.53521184]
[1746888709005,0.53927491,103580.0,103570.0,0.53521184]
[1746888709411,0.4299584,103580.0,103570.0,0.53521184]
[1746888712214,0.3995584,103580.0,103570.0,0.53521184]
[1746888716107,0.2335584,103580.0,103570.0,0.53521184]
[1746888717022,0.2335584,103580.0,103570.0,0.64452835]
[1746888717317,0.3995584,103580.0,103570.0,0.64452835]
[1746888717516,0.3995584,103580.0,103570.0,0.53521184]
[1746888719521,0.3995584,103580.0,103570.0,0.64452835]
[1746888721214,0.3995584,103580.0,103570.0,1.00532835]
[1746888721817,0.174,103580.0,103570.0,1.36532835]
[1746888722215,0.008,103580.0,103570.0,1.36532835]
[1746888723422,0.2010584,103580.0,103570.0,1.25601184]
[1746888723625,0.1990584,103580.0,103570.0,1.25501184]
[1746888723922,0.1950584,103580.0,103570.0,1.36332835]
[1746888724126,0.1930584,103580.0,103570.0,1.36332835]
[1746888724311,0.3711383,103590.0,103580.0,0.1930584]
[1746888724513,0.3711383,103590.0,103580.0,0.6896584]
[1746888724920,0.3711383,103590.0,103580.0,0.78619747]
[1746888725123,0.5371383,103590.0,103580.0,0.78619747]
[1746888725721,0.4406156,103590.0,103580.0,0.89551398]
[1746888725918,0.166,103590.0,103580.0,1.22483049]
[1746888726112,0.3223506,103600.0,103590.0,0.1930398]
[1746888726319,0.3706094,103600.0,103590.0,0.91097631]
[1746888726521,0.3706094,103600.0,103590.0,0.8016598]
[1746888726828,0.3706094,103600.0,103590.0,0.89819887]
[1746888727218,0.5366094,103600.0,103590.0,0.89619887]
[1746888727515,0.5386094,103600.0,103590.0,0.89619887]
[1746888727919,0.5416094,103600.0,103590.0,0.89719887]
[1746888728222,0.5747094,103600.0,103590.0,0.89719887]
[1746888731026,0.5416094,103600.0,103590.0,0.89719887]
[1746888731422,0.5416094,103600.0,103590.0,1.00651538]
[1746888732026,0.5416094,103600.0,103590.0,0.89719887]
[1746888737929,0.65092591,103600.0,103590.0,0.89719887]
[1746888738131,0.71442591,103600.0,103590.0,0.89719887]
[1746888739924,0.9659094,103600.0,103590.0,0.53639887]
[1746888740130,0.71442591,103600.0,103590.0,0.53639887]
[1746888742334,0.6051094,103600.0,103590.0,0.53639887]
[1746888742520,0.71442591,103600.0,103590.0,0.53639887]
[1746888742932,0.6051094,103600.0,103590.0,0.53639887]
[1746888743132,0.71442591,103600.0,103590.0,0.53639887]
[1746888745431,1.07522591,103600.0,103590.0,0.53639887]
[1746888745635,0.71442591,103600.0,103590.0,0.53639887]
[1746888746029,0.71442591,103600.0,103590.0,0.4398598]
[1746888746331,0.71442591,103600.0,103590.0,0.53638955]
[1746888749840,1.07522591,103600.0,103590.0,0.53638955]
[1746888750948,1.18454242,103600.0,103590.0,0.53638955]
[1746888751142,1.07522591,103600.0,103590.0,0.53638955]
[1746888752447,1.07522591,103600.0,103590.0,0.56908955]
[1746888752843,1.18454242,103600.0,103590.0,0.4725598]
[1746888753145,0.9659094,103600.0,103590.0,0.4725598]
[1746888753337,1.07522591,103600.0,103590.0,0.4725598]
[1746888755443,0.9659094,103600.0,103590.0,0.4725598]
[1746888755642,1.07522591,103600.0,103590.0,0.4725598]
[1746888761750,1.07522591,103600.0,103590.0,0.3310398]
[1746888769254,0.71442591,103600.0,103590.0,0.3310398]
[1746888769947,1.07522591,103600.0,103590.0,0.3310398]
[1746888775161,0.9659094,103600.0,103590.0,0.3310398]
[1746888775363,1.07522591,103600.0,103590.0,0.3310398]
[1746888776568,0.71442591,103600.0,103590.0,0.3310398]
[1746888776759,1.07522591,103600.0,103590.0,0.3310398]
[1746888783880,0.9659094,103600.0,103590.0,0.3310398]
[1746888784380,1.07522591,103600.0,103590.0,0.3310398]
[1746888786179,0.9659094,103600.0,103590.0,0.3310398]
[1746888786480,0.9659094,103600.0,103590.0,1.14768606]
[1746888786481,0.4605506,103600.0,103590.0,1.14768606]
[1746888786782,0.4605506,103600.0,103590.0,0.90768606]
[1746888787075,0.6265506,103600.0,103590.0,0.79836955]
[1746888787280,0.4605506,103600.0,103590.0,0.79836955]
[1746888787782,0.4928506,103600.0,103590.0,0.79836955]
[1746888788381,0.4605506,103600.0,103590.0,0.79836955]
[1746888791684,0.4605506,103600.0,103590.0,0.90768606]
[1746888791887,0.4605506,103600.0,103590.0,0.79836955]
[1746888792076,0.4605506,103600.0,103590.0,0.90768606]
[1746888792282,0.2945506,103600.0,103590.0,0.79836955]
[1746888792581,0.2945506,103600.0,103590.0,0.90768606]
[1746888793084,0.4605506,103600.0,103590.0,0.90768606]
[1746888793790,0.364036,103600.0,103590.0,0.90768606]
[1746888793981,0.364036,103600.0,103590.0,1.10768606]
[1746888794182,0.198036,103600.0,103590.0,1.10768606]
[1746888795789,0.198036,103600.0,103590.0,0.99836955]
[1746888796087,0.198036,103600.0,103590.0,1.10768606]
[1746888797182,0.198036,103600.0,103590.0,0.99836955]
[1746888797376,0.198036,103600.0,103590.0,1.10768606]
[1746888798984,0.230536,103600.0,103590.0,1.10768606]
[1746888799186,0.396536,103600.0,103590.0,1.10768606]
[1746888802001,0.396536,103600.0,103590.0,0.99836955]
[1746888802190,0.396536,103600.0,103590.0,1.10768606]
[1746888809494,0.396536,103600.0,103590.0,1.24824606]
[1746888813604,0.396536,103600.0,103590.0,0.88744606]
[1746888813804,0.396536,103600.0,103590.0,1.24824606]
[1746888814403,0.396536,103600.0,103590.0,0.88744606]
[1746888814605,0.396536,103600.0,103590.0,1.13892955]
[1746888814802,0.396536,103600.0,103590.0,1.24824606]
[1746888818297,0.427136,103600.0,103590.0,1.24824606]
[1746888819603,0.427136,103600.0,103590.0,1.13892955]
[1746888820108,0.427136,103600.0,103590.0,1.24824606]
[1746888821410,0.427136,103600.0,103590.0,1.13892955]
[1746888821601,0.427136,103600.0,103590.0,1.24824606]
[1746888823611,0.427136,103600.0,103590.0,1.13892955]
[1746888823810,0.427136,103600.0,103590.0,1.24824606]
[1746888826412,0.427136,103600.0,103590.0,1.13892955]
[1746888827113,0.427136,103600.0,103590.0,1.24824606]
[1746888831416,0.427136,103600.0,103590.0,1.13892955]
[1746888831605,0.427136,103600.0,103590.0,1.24824606]
[1746888832610,0.86665251,103600.0,103590.0,0.63756955]
[1746888832913,0.92795251,103600.0,103590.0,0.56784955]
[1746888833114,0.56715251,103600.0,103590.0,0.56784955]
[1746888833516,0.457836,103600.0,103590.0,0.56784955]
[1746888838223,0.818636,103600.0,103590.0,0.56784955]
[1746888838718,0.457836,103600.0,103590.0,0.56784955]
[1746888846523,0.457836,103600.0,103590.0,0.92864955]
[1746888846715,0.427736,103600.0,103590.0,0.92864955]
[1746888846915,0.396536,103600.0,103590.0,1.03796606]
[1746888848225,0.364036,103600.0,103590.0,1.03796606]
[1746888848426,0.395436,103600.0,103590.0,1.03796606]
[1746888851419,0.395436,103600.0,103590.0,0.92864955]
[1746888851626,0.395436,103600.0,103590.0,1.03796606]
[1746888862841,0.395436,103600.0,103590.0,0.92864955]
[1746888863347,0.395436,103600.0,103590.0,1.03796606]
[1746888870555,0.395436,103600.0,103590.0,0.92864955]
[1746888873258,0.395436,103600.0,103590.0,1.03796606]
[1746888873550,0.395436,103600.0,103590.0,0.92864955]
[1746888878350,0.425936,103600.0,103590.0,0.92864955]
[1746888882959,0.425936,103600.0,103590.0,0.56784955]
[1746888883164,0.425936,103600.0,103590.0,0.92864955]
[1746888891266,0.395436,103600.0,103590.0,1.03796606]
[1746888891466,0.395436,103600.0,103590.0,0.92864955]
[1746888901972,0.395436,103600.0,103590.0,1.03796606]
[1746888907981,0.395436,103600.0,103590.0,0.92864955]
[1746888912082,0.395436,103600.0,103590.0,0.56784955]
[1746888912381,0.395436,103600.0,103590.0,0.92864955]
[1746888916182,0.395436,103600.0,103590.0,1.03796606]
[1746888918690,0.395436,103600.0,103590.0,0.92864955]
[1746888924688,0.395436,103600.0,103590.0,0.56784955]
[1746888924892,0.395436,103600.0,103590.0,0.92864955]
[1746888930692,0.395436,103600.0,103590.0,1.03796606]
[1746888930995,0.395436,103600.0,103590.0,0.92864955]
[1746888931890,0.395436,103600.0,103590.0,0.56784955]
[1746888932085,0.395436,103600.0,103590.0,0.92864955]
[1746888934993,0.395436,103600.0,103590.0,0.56784955]
[1746888935196,0.395436,103600.0,103590.0,0.92864955]
[1746888938385,0.427036,103600.0,103590.0,0.92864955]
[1746888939996,0.457536,103600.0,103590.0,0.92864955]
[1746888941700,0.427036,103600.0,103590.0,0.92864955]
[1746888950806,0.395436,103600.0,103590.0,0.92864955]
[1746888952108,0.395436,103600.0,103590.0,0.56784955]
[1746888952308,0.395436,103600.0,103590.0,0.92864955]
[1746888960413,0.50475251,103600.0,103590.0,0.42756955]
[1746888960618,0.53785251,103600.0,103590.0,0.56576955]
[1746888960810,0.56855251,103600.0,103590.0,0.56576955]
[1746888961720,0.459236,103600.0,103590.0,0.92656955]
[1746888964021,0.428536,103600.0,103590.0,0.92656955]
[1746888966523,0.53785251,103600.0,103590.0,0.92656955]
[1746888966711,0.56985251,103600.0,103590.0,0.92656955]
[1746888968719,0.460536,103600.0,103590.0,0.92656955]
[1746888968926,0.56985251,103600.0,103590.0,0.92656955]
[1746888969421,0.460536,103600.0,103590.0,0.92656955]
[1746888976326,0.56985251,103600.0,103590.0,0.92656955]
[1746888979822,1.03996902,103600.0,103590.0,0.2782]
[1746888981121,1.03996902,103600.0,103590.0,0.4712398]
[1746888981321,1.03996902,103600.0,103590.0,0.2782]
[1746888981723,0.93065251,103600.0,103590.0,0.4712398]
[1746888982729,1.03996902,103600.0,103590.0,0.4712398]
[1746888983029,0.93065251,103600.0,103590.0,0.4712398]
[1746888983227,1.03996902,103600.0,103590.0,0.2782]
[1746888987034,0.93065251,103600.0,103590.0,0.2782]
[1746888990236,1.03996902,103600.0,103590.0,0.041]
[1746888990423,1.03996902,103600.0,103590.0,0.001]
[1746888990826,1.03996902,103600.0,103590.0,0.0329]
[1746888991042,1.03996902,103600.0,103590.0,0.0655]
[1746888993932,1.17724902,103600.0,103590.0,0.0655]
[1746888994940,1.17724902,103600.0,103590.0,0.0958]
[1746888995338,1.06793251,103600.0,103590.0,0.0958]
[1746888998040,1.06793251,103600.0,103590.0,0.1058]
[1746888999338,1.14524902,103600.0,103590.0,0.1058]
[1746888999635,1.17654902,103600.0,103590.0,0.0655]
[1746889000043,1.17654902,103600.0,103590.0,0.0982]
[1746889005354,1.06723251,103600.0,103590.0,0.0982]
[1746889006752,0.957916,103600.0,103590.0,0.0982]
[1746889007052,1.06723251,103600.0,103590.0,0.0982]
[1746889008250,0.70643251,103600.0,103590.0,0.0982]
[1746889008454,1.06723251,103600.0,103590.0,0.0982]
[1746889020453,0.70643251,103600.0,103590.0,0.0982]
[1746889020661,1.06723251,103600.0,103590.0,0.0982]
[1746889020858,1.06723251,103600.0,103590.0,0.2912398]
[1746889021047,1.06723251,103600.0,103590.0,0.0982]
[1746889023461,0.70643251,103600.0,103590.0,0.0982]
[1746889023662,1.06723251,103600.0,103590.0,0.0982]
[1746889025662,1.17654902,103600.0,103590.0,0.0982]
[1746889029267,0.81574902,103600.0,103590.0,0.0982]
[1746889029565,1.17654902,103600.0,103590.0,0.0982]
[1746889030569,0.957916,103600.0,103590.0,0.2912398]
[1746889030769,1.17654902,103600.0,103590.0,0.2912398]
[1746889033069,1.17654902,103600.0,103590.0,0.0982]
[1746889041976,1.17654902,103600.0,103590.0,0.2912398]
[1746889042278,1.17654902,103600.0,103590.0,0.0982]
[1746889044783,0.81574902,103600.0,103590.0,0.0982]
[1746889044980,1.17654902,103600.0,103590.0,0.0982]
[1746889050087,0.957916,103600.0,103590.0,0.0982]
[1746889050383,1.17654902,103600.0,103590.0,0.0982]
[1746889062888,0.81574902,103600.0,103590.0,0.0982]
[1746889063089,1.17654902,103600.0,103590.0,0.0982]
[1746889066593,0.957916,103600.0,103590.0,0.2912398]
[1746889066795,1.17654902,103600.0,103590.0,0.2912398]
[1746889067891,1.17654902,103600.0,103590.0,0.0982]
[1746889068287,0.81574902,103600.0,103590.0,0.0982]
[1746889068492,1.17654902,103600.0,103590.0,0.0982]
[1746889069192,0.81574902,103600.0,103590.0,0.0982]
[1746889069397,1.17654902,103600.0,103590.0,0.0982]
[1746889071794,0.81574902,103600.0,103590.0,0.0982]
[1746889072181,1.17654902,103600.0,103590.0,0.0982]
[1746889077498,1.06723251,103600.0,103590.0,0.0982]
[1746889078197,1.06723251,103600.0,103590.0,0.2912398]
[1746889078496,1.06723251,103600.0,103590.0,0.0982]
[1746889080501,0.70643251,103600.0,103590.0,0.0982]
[1746889080797,1.06723251,103600.0,103590.0,0.0982]
[1746889080992,0.70643251,103600.0,103590.0,0.0982]
[1746889081193,1.06723251,103600.0,103590.0,0.0982]
[1746889084197,0.70643251,103600.0,103590.0,0.0982]
[1746889084400,1.06723251,103600.0,103590.0,0.0982]
[1746889084601,1.17654902,103600.0,103590.0,0.0982]
[1746889094608,0.5318,103600.0,103590.0,0.40055631]
[1746889094801,0.171,103600.0,103590.0,1.29376606]
[1746889095000,0.171,103600.0,103590.0,1.90844257]
[1746889095196,0.72995114,103620.0,103610.0,0.1930025]
[1746889095401,0.72995114,103620.0,103610.0,0.49819901]
[1746889095709,0.72995114,103620.0,103610.0,0.56359901]
[1746889096006,0.72995114,103620.0,103610.0,0.66012876]
[1746889096204,0.17616724,103620.0,103610.0,1.02092876]
[1746889096407,0.17616724,103620.0,103610.0,1.27192876]
[1746889096408,0.18116724,103620.0,103610.0,1.27192876]
[1746889096605,0.20600952,103630.0,103620.0,0.1929839]
[1746889096802,0.2894353,103640.0,103630.0,0.1929653]
[1746889097097,0.2894353,103640.0,103630.0,0.87146181]
[1746889097302,0.2894353,103640.0,103630.0,0.60716361]
[1746889097511,0.2894353,103640.0,103630.0,0.50814737]
[1746889098401,0.2974353,103640.0,103630.0,0.50914737]
[1746889098808,0.3024353,103640.0,103630.0,0.50914737]
[1746889099009,0.88186832,103640.0,103630.0,0.31958207]
[1746889099211,1.11256832,103640.0,103630.0,0.0735]
[1746889099509,1.11256832,103640.0,103630.0,0.0335]
[1746889100912,1.35712483,103640.0,103630.0,0.001]
[1746889101212,0.1929839,103620.0,103610.0,0.16828]
[1746889101407,1.13321692,103620.0,103610.0,0.033]
[1746889101612,0.1930025,103610.0,103600.0,0.0322]
[1746889101799,0.86613552,103610.0,103600.0,0.0842]
[1746889102007,0.1930212,103600.0,103590.0,0.16748]
[1746889102204,0.80265422,103600.0,103590.0,0.6425198]
[1746889102409,0.83545422,103600.0,103590.0,0.4125198]
[1746889103111,1.00145422,103600.0,103590.0,0.21948]
[1746889103507,1.00145422,103600.0,103590.0,0.22248]
[1746889103908,1.00145422,103600.0,103590.0,0.4155198]
[1746889104502,0.7828212,103600.0,103590.0,0.4155198]
[1746889104707,1.00145422,103600.0,103590.0,0.4155198]
[1746889114624,0.7828212,103600.0,103590.0,0.4155198]
[1746889114919,1.00145422,103600.0,103590.0,0.4155198]
[1746889115224,0.64065422,103600.0,103590.0,0.4155198]
[1746889115413,1.00145422,103600.0,103590.0,0.4155198]
[1746889119123,0.64065422,103600.0,103590.0,0.4155198]
[1746889119329,1.00145422,103600.0,103590.0,0.4155198]
[1746889120121,0.7828212,103600.0,103590.0,0.4155198]
[1746889120329,0.89213771,103600.0,103590.0,0.4155198]
[1746889121725,1.00145422,103600.0,103590.0,0.4155198]
[1746889123030,0.89213771,103600.0,103590.0,0.4155198]
[1746889125423,1.00145422,103600.0,103590.0,0.055]
[1746889125626,1.24561073,103600.0,103590.0,0.023]
[1746889125832,1.13629422,103600.0,103590.0,0.003]
[1746889126728,1.14616109,103600.0,103590.0,0.003]
[1746889128726,1.14616109,103600.0,103590.0,0.0355]
[1746889137041,1.13629422,103600.0,103590.0,0.0355]
[1746889138543,1.1457873,103600.0,103590.0,0.0355]
[1746889143349,0.89213771,103600.0,103590.0,0.0355]
[1746889143552,1.13617422,103600.0,103590.0,0.0686]
[1746889144349,1.13617422,103600.0,103590.0,0.0355]
[1746889145748,1.14580472,103600.0,103590.0,0.0355]
[1746889151751,0.9175412,103600.0,103590.0,0.0355]
[1746889151943,0.92712401,103600.0,103590.0,0.0679]
[1746889152143,1.13617422,103600.0,103590.0,0.0679]
[1746889157955,1.14607059,103600.0,103590.0,0.0679]
[1746889168560,1.17767059,103600.0,103590.0,0.0679]
[1746889168757,0.81687059,103600.0,103590.0,0.0679]
[1746889168961,1.17767059,103600.0,103590.0,0.0679]
[1746889169961,0.81687059,103600.0,103590.0,0.0679]
[1746889170260,1.17767059,103600.0,103590.0,0.0679]
[1746889171962,0.81687059,103600.0,103590.0,0.0679]
[1746889172153,1.17767059,103600.0,103590.0,0.0679]
[1746889183871,1.06835408,103600.0,103590.0,0.0679]
[1746889185069,1.17767059,103600.0,103590.0,0.0679]
[1746889191973,1.16777422,103600.0,103590.0,0.0679]
[1746889192272,1.05845771,103600.0,103590.0,0.0679]
[1746889192569,1.06820311,103600.0,103590.0,0.0679]
[1746889192976,1.17751962,103600.0,103590.0,0.0679]
[1746889196078,0.9588866,103600.0,103590.0,0.0679]
[1746889196268,1.06820311,103600.0,103590.0,0.0679]
[1746889198472,0.70740311,103600.0,103590.0,0.0679]
[1746889198676,0.9588866,103600.0,103590.0,0.0679]
[1746889198873,0.9491412,103600.0,103590.0,0.0679]
[1746889199067,1.05845771,103600.0,103590.0,0.0679]
[1746889200476,1.05845771,103600.0,103590.0,0.2609398]
[1746889205777,0.69765771,103600.0,103590.0,0.2609398]
[1746889206081,1.05845771,103600.0,103590.0,0.2609398]
[1746889209486,0.69765771,103600.0,103590.0,0.2609398]
[1746889209673,1.05845771,103600.0,103590.0,0.0679]
[1746889210284,0.69765771,103600.0,103590.0,0.0679]
[1746889210487,1.16777422,103600.0,103590.0,0.0355]
[1746889243118,0.9491412,103600.0,103590.0,0.0355]
[1746889243325,1.16777422,103600.0,103590.0,0.0355]
[1746889250128,0.80697422,103600.0,103590.0,0.0355]
[1746889250331,1.52857422,103600.0,103590.0,0.0355]
[1746889258129,1.52857422,103600.0,103590.0,0.003]
[1746889258831,1.52857422,103600.0,103590.0,0.0353]
[1746889271035,1.66173422,103600.0,103590.0,0.0353]
[1746889292049,0.94013422,103600.0,103590.0,0.0353]
[1746889292351,1.66173422,103600.0,103590.0,0.0353]
[1746889295051,0.94013422,103600.0,103590.0,0.0353]
[1746889295257,1.66173422,103600.0,103590.0,0.0353]
[1746889297156,0.94013422,103600.0,103590.0,0.0353]
[1746889297355,1.66173422,103600.0,103590.0,0.0353]
[1746889303660,1.4431012,103600.0,103590.0,0.0353]
[1746889303862,1.66173422,103600.0,103590.0,0.0353]
[1746889308749,0.94013422,103600.0,103590.0,0.0353]
[1746889308950,1.66173422,103600.0,103590.0,0.0353]
[1746889311264,1.49573422,103600.0,103590.0,0.0353]
[1746889312153,1.68279422,103600.0,103590.0,0.0353]
[1746889316460,1.59908953,103600.0,103560.0,0.00395887]
[1746889316658,0.66319361,103570.0,103560.0,0.11585887]
[1746889316864,0.5538771,103570.0,103560.0,0.11585887]
[1746889317060,0.69419361,103570.0,103560.0,0.11585887]
[1746889317361,0.72599361,103570.0,103560.0,0.11585887]
[1746889317567,0.72599361,103570.0,103560.0,0.08395887]
[1746889317758,0.75719361,103570.0,103560.0,0.11425887]
[1746889318163,0.75719361,103570.0,103560.0,0.11825887]
[1746889318566,0.75719361,103570.0,103560.0,0.12225887]
[1746889319460,0.75719361,103570.0,103560.0,0.13668366]
[1746889319665,0.75719361,103570.0,103560.0,0.16978366]
[1746889320662,0.75719361,103570.0,103560.0,0.08978366]
[1746889321067,0.86651012,103570.0,103560.0,0.01195887]
[1746889321364,1.04218223,103570.0,103560.0,7e-08]
[1746889321869,1.04218223,103570.0,103560.0,0.01665071]
[1746889322073,1.04218223,103570.0,103560.0,0.01865071]
[1746889322274,1.04218223,103570.0,103560.0,1e-08]
[1746889324079,0.93286572,103570.0,103560.0,1e-08]
[1746889324977,1.04218223,103570.0,103560.0,1e-08]
[1746889325865,1.98840223,103570.0,103560.0,1e-08]
[1746889326381,1.72368223,103570.0,103560.0,1e-08]
[1746889326684,1.87908572,103570.0,103560.0,1e-08]
[1746889327083,1.98840223,103570.0,103560.0,1e-08]
[1746889332596,2.00946223,103570.0,103560.0,1e-08]
[1746889336084,2.00946223,103570.0,103560.0,0.03030001]
[1746889338795,1.63542572,103570.0,103560.0,0.03030001]
[1746889338991,1.76790572,103570.0,103560.0,0.03030001]
[1746889339295,1.73406572,103570.0,103560.0,0.22820001]
[1746889339494,1.84338223,103570.0,103560.0,0.22820001]
[1746889340098,1.84338223,103570.0,103560.0,0.06220001]
[1746889342497,1.84338223,103570.0,103560.0,0.03030001]
[1746889345101,2.00938223,103570.0,103560.0,0.01467502]
[1746889345304,2.00938223,103570.0,103560.0,3e-08]
[1746889353008,0.1930957,103560.0,103550.0,0.0311]
[1746889353201,0.86812872,103560.0,103550.0,0.0311]
[1746889355012,0.86812872,103560.0,103550.0,0.0331]
[1746889355213,1.03412872,103560.0,103550.0,0.0331]
[1746889355712,1.05519872,103560.0,103550.0,0.0351]
[1746889356210,1.05519872,103560.0,103550.0,0.004]
[1746889357213,0.88919872,103560.0,103550.0,0.004]
[1746889358216,1.05519872,103560.0,103550.0,0.004]
[1746889359105,0.88919872,103560.0,103550.0,0.004]
[1746889359307,0.99851523,103560.0,103550.0,0.004]
[1746889359516,0.88919872,103560.0,103550.0,0.0669]
[1746889360117,1.05519872,103560.0,103550.0,0.0669]
[1746889360312,0.69439872,103560.0,103550.0,0.0669]
[1746889360512,1.41599872,103560.0,103550.0,0.0669]
[1746889361922,1.1973657,103560.0,103550.0,0.0669]
[1746889362219,1.24999872,103560.0,103550.0,0.0669]
[1746889365623,1.24999872,103560.0,103550.0,0.08155831]
[1746889367422,1.38207872,103560.0,103550.0,0.08155831]
[1746889369524,1.1634457,103560.0,103550.0,0.08155831]
[1746889369723,1.37306221,103560.0,103550.0,0.08155831]
[1746889369927,1.34146221,103560.0,103550.0,0.11395831]
[1746889370115,1.34146221,103560.0,103550.0,0.27995831]
[1746889371224,1.34146221,103560.0,103550.0,0.2653]
[1746889371723,1.2321457,103560.0,103550.0,0.2653]
[1746889372116,1.34146221,103560.0,103550.0,0.2653]
[1746889372420,1.45077872,103560.0,103550.0,0.2653]
[1746889373219,1.18689872,103560.0,103550.0,0.2653]
[1746889373419,0.02107,103560.0,103550.0,1.00429891]
[1746889373620,0.2413331,103580.0,103570.0,0.1930771]
[1746889373826,0.2413331,103580.0,103570.0,0.31239361]
[1746889374014,0.2413331,103580.0,103570.0,0.40899361]
[1746889374220,0.35064961,103580.0,103570.0,0.56224414]
[1746889375419,0.35264961,103580.0,103570.0,0.56224414]
[1746889375626,0.35464961,103580.0,103570.0,0.56324414]
[1746889375927,0.2453331,103580.0,103570.0,0.56324414]
[1746889376128,0.35464961,103580.0,103570.0,0.56324414]
[1746889376629,0.2453331,103580.0,103570.0,0.56324414]
[1746889376827,0.35464961,103580.0,103570.0,0.56324414]
[1746889378526,0.2453331,103580.0,103570.0,0.56324414]
[1746889378727,0.2453331,103580.0,103570.0,0.57298311]
[1746889381122,0.2453331,103580.0,103570.0,0.56324414]
[1746889381923,0.2768331,103580.0,103570.0,0.56324414]
[1746889382228,0.38614961,103580.0,103570.0,0.56324414]
[1746889382832,0.41814961,103580.0,103570.0,0.56324414]
[1746889383033,0.88826612,103580.0,103570.0,0.2414]
[1746889383223,0.91896612,103580.0,103570.0,0.0754]
[1746889383423,0.91896612,103580.0,103570.0,0.2684771]
[1746889383631,0.91896612,103580.0,103570.0,0.0754]
[1746889384633,0.91896612,103580.0,103570.0,0.2684771]
[1746889384938,0.7003331,103580.0,103570.0,0.2684771]
[1746889385126,0.80964961,103580.0,103570.0,0.2684771]
[1746889385321,0.2768331,103580.0,103570.0,0.474342]
[1746889385533,0.2453331,103580.0,103570.0,0.474342]
[1746889385730,0.004,103580.0,103570.0,1.06089]
[1746889386038,0.2413051,103590.0,103580.0,0.337825]
[1746889386237,0.2413051,103590.0,103580.0,1.24932151]
[1746889386533,0.2413051,103590.0,103580.0,1.34586151]
[1746889386735,0.2413051,103590.0,103580.0,1.33309339]
[1746889387037,0.2730051,103590.0,103580.0,1.28483029]
[1746889387937,0.2730051,103590.0,103580.0,1.45131182]
[1746889388528,0.2730051,103590.0,103580.0,1.28483029]
[1746889389436,0.2730051,103590.0,103580.0,2.78483029]
[1746889390338,0.2730051,103590.0,103580.0,2.42403029]
[1746889390537,0.2730051,103590.0,103580.0,1.28483029]
[1746889391038,0.2730051,103590.0,103580.0,2.78483029]
[1746889391238,0.2730051,103590.0,103580.0,2.42403029]
[1746889391435,0.2730051,103590.0,103580.0,2.78483029]
[1746889391739,0.1930398,103590.0,103580.0,3.36037492]
[1746889392128,0.1930398,103590.0,103580.0,3.19389339]
[1746889392334,0.2248398,103590.0,103580.0,3.19389339]
[1746889394632,0.2248398,103590.0,103580.0,1.69389339]
[1746889395135,0.2248398,103590.0,103580.0,3.19389339]
[1746889395542,0.39132133,103590.0,103580.0,3.09735339]
[1746889395740,0.2248398,103590.0,103580.0,3.09735339]
[1746889397842,0.2570398,103590.0,103580.0,3.09735339]
[1746889399334,0.2894398,103590.0,103580.0,3.09735339]
[1746889401235,0.2894398,103590.0,103580.0,2.93135339]
[1746889402144,0.2894398,103590.0,103580.0,1.59735339]
[1746889404149,0.2894398,103590.0,103580.0,1.43135339]
[1746889407754,0.39869941,103590.0,103580.0,1.43135339]
[1746889412160,0.2894398,103590.0,103580.0,1.43135339]
[1746889412356,0.39869941,103590.0,103580.0,1.43135339]
[1746889412758,0.2894398,103590.0,103580.0,1.43135339]
[1746889413061,0.39869941,103590.0,103580.0,1.43135339]
[1746889413562,0.2894398,103590.0,103580.0,1.43135339]